lending/lending_fUSD_20250114
["ID","MTS","AMOUNT","RATE_DAILY","PERIOD"]
[348928283,1736874668475,-3954.4162066,0.00012158,2]
[348928284,1736874668487,-255.9537934,0.00012158,2]
[348928285,1736874668498,-904.43,0.00012158,2]
[348928286,1736874668508,-352.50477048,0.00012158,2]
[348928287,1736874668519,-294.20522952,0.00012158,2]
[348928288,1736874668529,-1140.74,0.00012158,2]
[348928289,1736874668538,-570.49,0.00012158,2]
[348928290,1736874668548,-2114.74,0.00012158,2]
[348928291,1736874668558,-642.80397673,0.00012158,2]
[348928292,1736874668570,-139.93602327,0.00012158,2]
[348928293,1736874668579,-500.0,0.00012158,2]
[348928294,1736874668589,-1263.13,0.00012158,2]
[348928295,1736874668599,-946.28,0.00012158,2]
[348928296,1736874668609,-500.0,0.00012165,2]
[348928297,1736874668619,-500.0,0.00012165,2]
[348928298,1736874668628,-500.0,0.00012165,2]
[348928299,1736874668638,-368.25397673,0.00012165,2]
[348928300,1736874668650,-131.74602327,0.00012165,2]
[348928301,1736874668660,-620.5,0.00012165,2]
[348928302,1736874668712,-500.0,0.00012165,2]
[348928303,1736874668723,-500.0,0.00012165,2]
[348928304,1736874668732,-500.0,0.00012165,2]
[348928305,1736874668743,-516.48,0.00012165,2]
[348928306,1736874668753,-500.0,0.00012165,2]
[348928307,1736874668763,-500.0,0.00012165,2]
[348928308,1736874668773,-500.0,0.00012165,2]
[348928309,1736874668783,-500.0,0.00012165,2]
[348928310,1736874668792,-500.0,0.00012165,2]
[348928311,1736874668802,-500.0,0.00012165,2]
[348928312,1736874668811,-250.78713225,0.00012165,2]
[348928313,1736874668821,-655.28,0.00012165,2]
[348928314,1736874668830,-500.0,0.00012165,2]
[348928315,1736874668839,-500.0,0.00012165,2]
[348928316,1736874668848,-500.0,0.00012165,2]
[348928317,1736874668857,-500.0,0.00012165,2]
[348928318,1736874668866,-500.0,0.00012165,2]
[348928319,1736874668875,-500.0,0.00012165,2]
[348928320,1736874668885,-500.0,0.00012165,2]
[348928321,1736874668894,-500.0,0.00012165,2]
[348928322,1736874668902,-915.02,0.00012165,2]
[348928323,1736874668911,-150.65,0.00012165,2]
[348928324,1736874668921,-792.53,0.00012165,2]
[348928325,1736874668931,-500.0,0.00012165,2]
[348928326,1736874668940,-735.394565,0.00012165,2]
[348928327,1736874668950,-500.0,0.00012165,2]
[348928328,1736874668960,-417.88,0.00012165,2]
[348928329,1736874668969,-2410.71,0.00012165,2]
[348928330,1736874668979,-767.859734,0.00012165,2]
[348928331,1736874668988,-500.0,0.00012165,2]
[348928332,1736874668997,-500.0,0.00012165,2]
[348928333,1736874669007,-841.88,0.00012165,2]
[348928334,1736874669016,-603.4190569,0.00012165,2]
[348928335,1736874669026,-500.0,0.00012165,2]
[348928336,1736874669035,-500.0,0.00012165,2]
[348928337,1736874669047,-500.0,0.00012165,2]
[348928338,1736874669057,-500.0,0.00012165,2]
[348928339,1736874669067,-2848.83,0.00012165,2]
[348928340,1736874669076,-500.0,0.00012165,2]
[348928341,1736874669086,-500.0,0.00012165,2]
[348928342,1736874669096,-500.0,0.00012165,2]
[348928343,1736874669105,-500.0,0.00012165,2]
[348928344,1736874669115,-2878.74,0.00012165,2]
[348928345,1736874669125,-2273.43,0.00012165,2]
[348928346,1736874669135,-500.0,0.00012165,2]
[348928347,1736874669145,-500.0,0.00012165,2]
[348928348,1736874669155,-500.0,0.00012165,2]
[348928349,1736874669165,-1853.63,0.00012165,2]
[348928350,1736874669174,-583.4,0.00012165,2]
[348928351,1736874669184,-861.59,0.00012165,2]
[348928352,1736874669194,-536.63,0.00012165,2]
[348928353,1736874669206,-500.0,0.00012165,2]
[348928354,1736874669216,-500.0,0.00012165,2]
[348928355,1736874669226,-500.0,0.00012165,2]
[348928356,1736874669236,-579.0,0.00012165,2]
[348928357,1736874669245,-500.0,0.00012165,2]
[348928358,1736874669255,-500.0,0.00012165,2]
[348928359,1736874669264,-500.0,0.00012166,2]
[348928360,1736874669274,-1566.81,0.00012166,2]
[348928361,1736874669283,-555.75,0.00012166,2]
[348928362,1736874669293,-852.0,0.00012166,2]
[348928363,1736874669303,-500.0,0.00012166,2]
[348928364,1736874669313,-500.0,0.00012166,2]
[348928365,1736874669322,-500.0,0.00012166,2]
[348928366,1736874669332,-777.15,0.00012166,2]
[348928367,1736874669342,-500.0,0.00012166,2]
[348928368,1736874669350,-500.0,0.00012166,2]
[348928369,1736874669359,-668.22,0.00012166,2]
[348928370,1736874669370,-500.0,0.00012166,2]
[348928371,1736874669380,-500.0,0.00012166,2]
[348928372,1736874669390,-500.0,0.00012166,2]
[348928373,1736874669400,-1596.93,0.00012166,2]
[348928374,1736874669413,-579.09,0.00012166,2]
[348928375,1736874669423,-168.15353885,0.00012166,2]
[348928376,1736874669433,-500.0,0.00012166,2]
[348928377,1736874669444,-961.72,0.00012166,2]
[348928378,1736874669455,-818.85,0.00012166,2]
[348928379,1736874669467,-569.76,0.00012166,2]
[348928380,1736874669478,-1665.38,0.00012166,2]
[348928381,1736874669489,-950.37,0.00012166,2]
[348928382,1736874669500,-784.12,0.00012166,2]
[348928383,1736874669510,-667.27,0.00012166,2]
[348928384,1736874669521,-161.79765898,0.00012293,2]
[348928385,1736874669530,-200.0,0.000123,2]
[348928386,1736874669541,-719720.01990997,0.000123,2]
[348928387,1736874669567,-5221.86305,0.000123,2]
[348928388,1736874669883,-500.0,9.963e-05,2]
[348928389,1736874669893,-500.0,9.973e-05,2]
[348928390,1736874669904,-168.24603,9.973e-05,2]
[348928391,1736874669914,-500.0,9.973e-05,2]
[348928392,1736874669924,-500.0,9.973e-05,2]
[348928393,1736874669934,-1202.86,0.00010237,2]
[348928394,1736874669944,-500.0,0.00010247,2]
[348928395,1736874669954,-1202.86,0.00010511,2]
[348928396,1736874669964,-1202.86,0.00010785,2]
[348928397,1736874669974,-862.70120168,0.00010974,2]
[348928398,1736874669984,-168.24603,0.00011617,2]
[348928399,1736874669994,-83635.59740843,0.000123,2]
[348928400,1736874670005,-1009.0940635,0.000123,2]
[348928401,1736874670016,-36985.99698623,0.000123,2]
[348928402,1736874670027,-418.18435819,0.000123,2]
[348928403,1736874670045,-28152.95384154,0.000123,2]
[348928404,1736874670058,-118147.17715303,0.000123,2]
[348928405,1736874670073,-397.6016316,0.000123,2]
[348928406,1736874670085,-2704.598,0.000123,2]
[348928407,1736874670109,-500.0,0.00010247,2]
[348928408,1736874670120,-1113.70970627,0.000123,2]
[348928409,1736874670139,-500.0,0.00010521,2]
[348928410,1736874670149,-911.3,0.000123,2]
[348928411,1736874670160,-538.70369134,0.000123,2]
[348928412,1736874670174,-247639.09518473,0.000123,2]
[348928413,1736874670185,-1567.0152153,0.000123,2]
[348928414,1736874670196,-470.0,0.000123,2]
[348928415,1736874670207,-12508.95628078,0.000123,2]
[348928416,1736874670220,-582.0,0.000123,2]
[348928417,1736874670231,-3876.25222147,0.000123,2]
[348928418,1736874670242,-42217.3649194,0.000123,2]
[348928419,1736874670254,-918.0,0.000123,2]
[348928420,1736874691439,150.0,0.00019492,120]
[348928421,1736874810749,150.0,0.00018789,120]
[348928423,1736874870774,150.0,0.00019048,120]
[348928425,1736875111956,150.0,0.00018648,120]
[348928427,1736875230764,150.0,0.000195,120]
[348928428,1736875508868,1015.29,8.219e-05,2]
[348928433,1736875617654,165.64,7.223e-05,2]
[348928476,1736875831766,-1114.89,8.992e-05,2]
[348928477,1736875831777,-124.46,8.999e-05,2]
[348928478,1736875831788,-479.3635473,8.999e-05,2]
[348928479,1736875831800,-396.1764527,8.999e-05,2]
[348928480,1736875831809,-205.53426664,8.999e-05,2]
[348928481,1736875831818,-1108.27492714,9.007e-05,2]
[348928482,1736875831828,-250.0,9.007e-05,2]
[348928483,1736875831837,-168.98,9.028e-05,2]
[348928484,1736875831846,-250.0,9.047e-05,2]
[348928485,1736875831855,-179.133704,9.532e-05,2]
[348928486,1736875831865,-880.6151479,9.773e-05,2]
[348928487,1736875831874,-3895.5771,9.873e-05,2]
[348928488,1736875831884,-582.85323223,9.877e-05,2]
[348928489,1736875831897,-706.08022785,9.877e-05,2]
[348928490,1736875831907,-6030.121,9.877e-05,2]
[348928491,1736875831918,-1199.30418284,9.877e-05,2]
[348928492,1736875831929,-94.50085708,9.877e-05,2]
[348928493,1736875831939,-150.0,9.962e-05,2]
[348928494,1736875831953,-500.0,9.963e-05,2]
[348928495,1736875831963,-173.20982076,9.963e-05,2]
[348928496,1736875831975,-326.79017924,9.963e-05,2]
[348928497,1736875831984,-500.0,9.963e-05,2]
[348928498,1736875831994,-500.0,9.963e-05,2]
[348928499,1736875832003,-500.0,9.963e-05,2]
[348928500,1736875832013,-79.13066635,9.963e-05,2]
[348928501,1736875832024,-420.86933365,9.963e-05,2]
[348928502,1736875832034,-500.0,9.963e-05,2]
[348928503,1736875832043,-500.0,9.963e-05,2]
[348928504,1736875832054,-500.0,9.963e-05,2]
[348928505,1736875832064,-500.0,9.963e-05,2]
[348928506,1736875832073,-500.0,9.963e-05,2]
[348928507,1736875832083,-500.0,9.963e-05,2]
[348928508,1736875832092,-500.0,9.963e-05,2]
[348928509,1736875832102,-500.0,9.963e-05,2]
[348928510,1736875832111,-500.0,9.963e-05,2]
[348928511,1736875832120,-500.0,9.963e-05,2]
[348928512,1736875832129,-500.0,9.963e-05,2]
[348928513,1736875832138,-500.0,9.963e-05,2]
[348928514,1736875832148,-500.0,9.963e-05,2]
[348928515,1736875832158,-500.0,9.963e-05,2]
[348928516,1736875832167,-41.04647237,9.963e-05,2]
[348928517,1736875832179,-413.21193929,9.963e-05,2]
[348928518,1736875832193,-45.74158834,9.963e-05,2]
[348928519,1736875832203,-257.43761166,9.963e-05,2]
[348928520,1736875832213,-242.56238834,9.963e-05,2]
[348928521,1736875832223,-500.0,9.963e-05,2]
[348928522,1736875832232,-500.0,9.963e-05,2]
[348928523,1736875832242,-500.0,9.963e-05,2]
[348928524,1736875832251,-500.0,9.963e-05,2]
[348928525,1736875832261,-500.0,9.963e-05,2]
[348928527,1736875832270,-500.0,9.963e-05,2]
[348928529,1736875832280,-500.0,9.963e-05,2]
[348928530,1736875832289,-500.0,9.963e-05,2]
[348928532,1736875832298,-500.0,9.963e-05,2]
[348928534,1736875832307,-500.0,9.963e-05,2]
[348928536,1736875832316,-500.0,9.963e-05,2]
[348928538,1736875832326,-500.0,9.963e-05,2]
[348928540,1736875832336,-500.0,9.963e-05,2]
[348928542,1736875832346,-500.0,9.963e-05,2]
[348928544,1736875832355,-500.0,9.963e-05,2]
[348928546,1736875832365,-500.0,9.963e-05,2]
[348928548,1736875832374,-500.0,9.963e-05,2]
[348928550,1736875832383,-500.0,9.963e-05,2]
[348928552,1736875832392,-500.0,9.963e-05,2]
[348928554,1736875832401,-500.0,9.963e-05,2]
[348928556,1736875832411,-500.0,9.963e-05,2]
[348928558,1736875832420,-619.17,9.963e-05,2]
[348928560,1736875832430,-500.0,9.963e-05,2]
[348928562,1736875832440,-500.0,9.963e-05,2]
[348928564,1736875832454,-500.0,9.963e-05,2]
[348928566,1736875832464,-500.0,9.963e-05,2]
[348928568,1736875832474,-500.0,9.963e-05,2]
[348928570,1736875832483,-509.59,9.963e-05,2]
[348928572,1736875832495,-500.0,9.963e-05,2]
[348928575,1736875832505,-500.0,9.963e-05,2]
[348928577,1736875832516,-561.13,9.963e-05,2]
[348928579,1736875832527,-500.0,9.963e-05,2]
[348928581,1736875832539,-538.54,9.963e-05,2]
[348928583,1736875832549,-500.0,9.963e-05,2]
[348928585,1736875832560,-500.0,9.963e-05,2]
[348928587,1736875832570,-500.0,9.963e-05,2]
[348928589,1736875832580,-500.0,9.963e-05,2]
[348928591,1736875832590,-500.0,9.963e-05,2]
[348928593,1736875832600,-500.0,9.963e-05,2]
[348928595,1736875832609,-500.0,9.963e-05,2]
[348928597,1736875832619,-500.0,9.963e-05,2]
[348928599,1736875832628,-500.0,9.963e-05,2]
[348928601,1736875832638,-500.0,9.963e-05,2]
[348928603,1736875832647,-500.0,9.963e-05,2]
[348928605,1736875832657,-500.0,9.963e-05,2]
[348928607,1736875832666,-500.0,9.963e-05,2]
[348928609,1736875832676,-500.0,9.963e-05,2]
[348928611,1736875832686,-612.61,9.963e-05,2]
[348928613,1736875832697,-500.0,9.963e-05,2]
[348928615,1736875832706,-500.0,9.963e-05,2]
[348928617,1736875832716,-500.0,9.963e-05,2]
[348928619,1736875832725,-826.92086897,9.963e-05,2]
[348928621,1736875832735,-500.0,9.963e-05,2]
[348928623,1736875832744,-500.0,9.963e-05,2]
[348928625,1736875832755,-500.0,9.963e-05,2]
[348928627,1736875832765,-593.57,9.963e-05,2]
[348928629,1736875832776,-1141.76,9.963e-05,2]
[348928630,1736875832785,-500.0,9.963e-05,2]
[348928632,1736875832794,-500.0,9.963e-05,2]
[348928634,1736875832804,-500.0,9.963e-05,2]
[348928636,1736875832813,-500.0,9.963e-05,2]
[348928638,1736875832822,-998.16,9.963e-05,2]
[348928640,1736875832832,-500.0,9.963e-05,2]
[348928642,1736875832841,-500.0,9.963e-05,2]
[348928644,1736875832850,-889.85,9.963e-05,2]
[348928646,1736875832860,-500.0,9.963e-05,2]
[348928648,1736875832869,-1988.28,9.963e-05,2]
[348928650,1736875832879,-500.0,9.963e-05,2]
[348928652,1736875832888,-500.0,9.963e-05,2]
[348928654,1736875832897,-572.16,9.963e-05,2]
[348928656,1736875832907,-6836.5,9.963e-05,2]
[348928658,1736875832917,-500.0,9.963e-05,2]
[348928660,1736875832926,-616.95,9.963e-05,2]
[348928662,1736875832936,-500.0,9.963e-05,2]
[348928664,1736875832947,-1029.1,9.963e-05,2]
[348928666,1736875832956,-529.71,9.963e-05,2]
[348928668,1736875832965,-1374.62,9.963e-05,2]
[348928670,1736875832974,-500.0,9.963e-05,2]
[348928672,1736875832984,-622.61,9.963e-05,2]
[348928674,1736875832993,-663.0,9.963e-05,2]
[348928676,1736875833002,-500.0,9.963e-05,2]
[348928678,1736875833012,-3792.62,9.963e-05,2]
[348928680,1736875833022,-500.0,9.963e-05,2]
[348928682,1736875833031,-500.0,9.963e-05,2]
[348928684,1736875833042,-500.0,9.963e-05,2]
[348928686,1736875833052,-522.75,9.963e-05,2]
[348928688,1736875833061,-500.0,9.963e-05,2]
[348928690,1736875833071,-500.0,9.963e-05,2]
[348928692,1736875833081,-500.0,9.963e-05,2]
[348928694,1736875833090,-500.0,9.963e-05,2]
[348928696,1736875833100,-883.89,9.963e-05,2]
[348928698,1736875833110,-500.0,9.963e-05,2]
[348928700,1736875833119,-500.0,9.963e-05,2]
[348928702,1736875833129,-1455.18,9.963e-05,2]
[348928704,1736875833140,-500.0,9.963e-05,2]
[348928706,1736875833150,-878.69,9.963e-05,2]
[348928708,1736875833160,-1458.25,9.963e-05,2]
[348928710,1736875833169,-500.0,9.963e-05,2]
[348928712,1736875833179,-500.0,9.963e-05,2]
[348928714,1736875833188,-938.48,9.963e-05,2]
[348928716,1736875833199,-875.91122857,9.968e-05,2]
[348928718,1736875833209,-260.08668862,9.97e-05,2]
[348928720,1736875833219,-500.0,9.972e-05,2]
[348928722,1736875833229,-500.0,9.972e-05,2]
[348928724,1736875833239,-534.40356428,9.972e-05,2]
[348928726,1736875833249,-7884.0,9.973e-05,2]
[348928729,1736875833259,-587.32066187,9.973e-05,2]
[348928731,1736875833268,-151.89807735,9.973e-05,2]
[348928732,1736875833277,-500.0,9.973e-05,2]
[348928734,1736875833287,-482.812448,9.973e-05,2]
[348928737,1736875833297,-237.43690808,9.973e-05,2]
[348928739,1736875833307,-500.0,9.973e-05,2]
[348928740,1736875833316,-533.83537926,9.973e-05,2]
[348928742,1736875833328,-503.74049584,9.973e-05,2]
[348928744,1736875833337,-501.96392323,9.973e-05,2]
[348928746,1736875833348,-501.49502886,9.973e-05,2]
[348928747,1736875833357,-507.42350072,9.973e-05,2]
[348928749,1736875833367,-500.0,9.973e-05,2]
[348928751,1736875833376,-500.0,9.973e-05,2]
[348928753,1736875833385,-500.0,9.973e-05,2]
[348928755,1736875833395,-500.0,9.973e-05,2]
[348928757,1736875833404,-161.00859388,9.973e-05,2]
[348928759,1736875833413,-500.0,9.973e-05,2]
[348928761,1736875833423,-500.0,9.973e-05,2]
[348928763,1736875833432,-500.0,9.973e-05,2]
[348928765,1736875833442,-500.0,9.973e-05,2]
[348928767,1736875833455,-500.0,9.973e-05,2]
[348928768,1736875833464,-500.0,9.973e-05,2]
[348928771,1736875833474,-500.0,9.973e-05,2]
[348928773,1736875833484,-500.0,9.973e-05,2]
[348928774,1736875833495,-150.0,9.973e-05,2]
[348928777,1736875833505,-500.0,9.973e-05,2]
[348928778,1736875833514,-500.0,9.973e-05,2]
[348928780,1736875833525,-500.0,9.973e-05,2]
[348928782,1736875833534,-501.97527061,9.973e-05,2]
[348928784,1736875833544,-500.0,9.973e-05,2]
[348928786,1736875833553,-500.0,9.973e-05,2]
[348928788,1736875833562,-500.0,9.973e-05,2]
[348928790,1736875833572,-500.0,9.973e-05,2]
[348928792,1736875833582,-500.0,9.973e-05,2]
[348928794,1736875833592,-500.50053246,9.973e-05,2]
[348928796,1736875833601,-500.0,9.973e-05,2]
[348928798,1736875833612,-173.48525264,9.973e-05,2]
[348928800,1736875833621,-314.09529832,9.973e-05,2]
[348928802,1736875833631,-500.0,9.973e-05,2]
[348928804,1736875833640,-500.0,9.973e-05,2]
[348928806,1736875833650,-500.0,9.973e-05,2]
[348928808,1736875833661,-500.0,9.973e-05,2]
[348928810,1736875833670,-500.0,9.973e-05,2]
[348928812,1736875833680,-501.41735268,9.973e-05,2]
[348928813,1736875833690,-500.0,9.973e-05,2]
[348928815,1736875833701,-500.0,9.973e-05,2]
[348928817,1736875833711,-500.0,9.973e-05,2]
[348928819,1736875833721,-500.0,9.973e-05,2]
[348928822,1736875833731,-500.0,9.973e-05,2]
[348928824,1736875833741,-500.0,9.973e-05,2]
[348928825,1736875833751,-500.0,9.973e-05,2]
[348928827,1736875833760,-500.0,9.973e-05,2]
[348928829,1736875833771,-500.0,9.973e-05,2]
[348928831,1736875833782,-500.0,9.973e-05,2]
[348928833,1736875833792,-2554.81,9.973e-05,2]
[348928835,1736875833801,-2315.27551941,9.973e-05,2]
[348928837,1736875833810,-995.59,9.973e-05,2]
[348928839,1736875833820,-568.0,9.973e-05,2]
[348928841,1736875833829,-3792.62,9.973e-05,2]
[348928843,1736875833839,-922.33,9.973e-05,2]
[348928845,1736875833848,-500.0,9.973e-05,2]
[348928847,1736875833857,-500.0,9.973e-05,2]
[348928849,1736875833867,-543.06,9.973e-05,2]
[348928851,1736875833876,-1714.59,9.973e-05,2]
[348928853,1736875833886,-416.32160372,9.973e-05,2]
[348928855,1736875833896,-200.0,9.973e-05,2]
[348928857,1736875833905,-482.812448,9.974e-05,2]
[348928858,1736875833914,-500.0,9.976e-05,2]
[348928860,1736875833924,-500.0,9.976e-05,2]
[348928862,1736875833934,-416.32160372,9.976e-05,2]
[348928864,1736875833943,-534.40356428,9.976e-05,2]
[348928866,1736875833953,-534.40356428,9.977e-05,2]
[348928868,1736875833963,-482.812448,9.977e-05,2]
[348928870,1736875833973,-260.08668862,9.977e-05,2]
[348928872,1736875833982,-416.32160372,9.977e-05,2]
[348928874,1736875833992,-416.32160372,9.978e-05,2]
[348928876,1736875834002,-1083.99168938,9.979e-05,2]
[348928878,1736875834011,-3792.62,9.982e-05,2]
[348928880,1736875834020,-500.0,9.982e-05,2]
[348928882,1736875834029,-534.40356428,9.983e-05,2]
[348928884,1736875834039,-1083.99168938,9.983e-05,2]
[348928886,1736875834048,-416.32160372,9.984e-05,2]
[348928888,1736875834058,-1083.99168938,9.985e-05,2]
[348928890,1736875834068,-1083.99168938,9.987e-05,2]
[348928892,1736875834077,-200.0,9.988e-05,2]
[348928894,1736875834087,-260.08668862,9.988e-05,2]
[348928896,1736875834097,-200.0,9.989e-05,2]
[348928898,1736875834106,-416.32160372,9.991e-05,2]
[348928900,1736875834116,-260.08668862,9.993e-05,2]
[348928902,1736875834126,-534.40356428,9.993e-05,2]
[348928904,1736875834136,-482.812448,9.994e-05,2]
[348928906,1736875834145,-482.812448,9.994e-05,2]
[348928908,1736875834155,-1083.99168938,9.994e-05,2]
[348928910,1736875834164,-260.08668862,9.995e-05,2]
[348928912,1736875834174,-2315.27551923,9.997e-05,2]
[348928914,1736875834183,-482.812448,9.997e-05,2]
[348928915,1736875834193,-746.81,9.998e-05,2]
[348928918,1736875834206,-3046.11,9.998e-05,2]
[348928920,1736875834216,-796.81,9.998e-05,2]
[348928921,1736875834225,-1545.1,9.998e-05,2]
[348928924,1736875834235,-5189.42,9.998e-05,2]
[348928926,1736875834245,-500.0,9.998e-05,2]
[348928927,1736875834254,-768.07,9.998e-05,2]
[348928929,1736875834264,-787.79,9.998e-05,2]
[348928931,1736875834274,-500.0,9.998e-05,2]
[348928933,1736875834284,-1392.44,9.998e-05,2]
[348928935,1736875834293,-544.06,9.998e-05,2]
[348928937,1736875834303,-2279.15,9.998e-05,2]
[348928939,1736875834313,-893.35,9.998e-05,2]
[348928941,1736875834322,-546.12,9.998e-05,2]
[348928943,1736875834333,-1468.46,9.998e-05,2]
[348928945,1736875834343,-1107.06,9.998e-05,2]
[348928947,1736875834353,-534.40356428,9.999e-05,2]
[348928949,1736875834363,-500.0,9.999e-05,2]
[348928952,1736875834373,-3792.62,9.999e-05,2]
[348928953,1736875834383,-502.68882185,9.999e-05,2]
[348928955,1736875834393,-500.0,9.999e-05,2]
[348928957,1736875834403,-1541.83,9.999e-05,2]
[348928959,1736875834412,-500.0,9.999e-05,2]
[348928961,1736875834421,-500.0,9.999e-05,2]
[348928963,1736875834431,-1920.48,9.999e-05,2]
[348928965,1736875834441,-1444.02,9.999e-05,2]
[348928967,1736875834454,-500.0,9.999e-05,2]
[348928969,1736875834464,-843.52,9.999e-05,2]
[348928971,1736875834474,-2046.78,9.999e-05,2]
[348928973,1736875834483,-500.0,9.999e-05,2]
[348928975,1736875834492,-500.0,9.999e-05,2]
[348928977,1736875834502,-500.0,9.999e-05,2]
[348928979,1736875834511,-500.0,9.999e-05,2]
[348928981,1736875834522,-500.0,9.999e-05,2]
[348928983,1736875834533,-500.0,9.999e-05,2]
[348928985,1736875834543,-500.0,9.999e-05,2]
[348928987,1736875834552,-500.0,9.999e-05,2]
[348928989,1736875834562,-720.75,9.999e-05,2]
[348928991,1736875834571,-500.0,9.999e-05,2]
[348928993,1736875834580,-547.89985272,9.999e-05,2]
[348928995,1736875834590,-500.0,9.999e-05,2]
[348928997,1736875834599,-1599.42,9.999e-05,2]
[348928999,1736875834608,-1083.99168938,0.0001,2]
[348929001,1736875834618,-1354.74,0.0001,2]
[348929003,1736875834627,-215.72189431,0.0001,2]
[348929005,1736875834636,-500.0,0.0001,2]
[348929007,1736875834646,-322311.5921324,0.0001,2]
[348929061,1736875835155,-209753.79705227,0.0001,2]
[348929063,1736875835168,-829346.86544913,0.0001,2]
[348929064,1736875835203,-500.0,9.963e-05,2]
[348929065,1736875835212,-400.0,0.0001,2]
[348929066,1736875835223,-55544.73597503,0.0001,2]
[348929067,1736875835235,-70878.55530871,0.0001,2]
[348929068,1736875835245,-2308.34147264,0.0001,2]
[348929069,1736875835256,-1071.52999766,0.0001,2]
[348929070,1736875835267,-4164.24520804,0.0001,2]
[348929071,1736875835279,-5532.93170532,0.0001,2]
[348929072,1736875835290,-1221.47,0.0001,2]
[348929073,1736875835302,-600.0,0.0001,2]
[348929314,1736875837662,-200.0,9.974e-05,2]
[348929316,1736875837673,-200.0,9.976e-05,2]
[348929318,1736875837683,-500.0,9.999e-05,2]
[348929320,1736875837692,-500.0,9.999e-05,2]
[348929322,1736875837702,-500.0,9.999e-05,2]
[348929324,1736875837712,-10372.4,0.0001,2]
[348929331,1736875837778,-21156.28042453,0.0001,2]
[348929338,1736875837840,-449.23479685,0.0001,2]
[348929340,1736875837851,-1578.3119117,0.0001,2]
[348929343,1736875837863,-5914.08,0.0001,2]
[348929345,1736875837876,-7679.9354122,0.0001,2]
[348929347,1736875837889,-1977.8158802,0.0001,2]
[348929355,1736875837960,-930.32255954,0.0001,2]
[348929523,1736875839777,-500.0,9.999e-05,2]
[348929525,1736875839786,-500.0,9.999e-05,2]
[348929527,1736875839796,-501.80423103,9.999e-05,2]
[348929529,1736875839805,-18309.55742857,0.0001,2]
[348929532,1736875839819,-65085.27892453,0.0001,2]
[348929534,1736875839832,-112214.00112027,0.0001,2]
[348929569,1736875840155,-374.82530976,0.0001,2]
[348929583,1736875840271,-4773.97860762,0.0001,2]
[348929585,1736875840282,-816.61761866,0.0001,2]
[348929591,1736875840330,-721.62999,0.0001,2]
[348929594,1736875840343,-490.29000001,0.0001,2]
[348929844,1736875842793,-619.41,9.973e-05,2]
[348929846,1736875842803,-500.0,9.999e-05,2]
[348929848,1736875842813,-500.0,9.999e-05,2]
[348929850,1736875842823,-500.0,9.999e-05,2]
[348929852,1736875842832,-500.0,9.999e-05,2]
[348929854,1736875842841,-747.625,0.0001,2]
[348929856,1736875842857,-778857.03159595,0.0001,2]
[348929869,1736875842966,-637.5221,0.0001,2]
[348929876,1736875843026,-329449.01295571,0.0001,2]
[348929878,1736875843036,-18795.36628658,0.0001,2]
[348929880,1736875843046,-1165.09794102,0.0001,2]
[348929882,1736875843056,-9482.86033627,0.00010071,4]
[348929884,1736875843065,-2315.27551923,0.00010121,2]
[348929886,1736875843075,-1000.0,0.00010124,2]
[348929888,1736875843084,-5000.0,0.00010135,2]
[348929890,1736875843093,-1000.0,0.00010137,2]
[348929892,1736875843103,-500.0,0.00010235,2]
[348929894,1736875843112,-500.0,0.00010235,2]
[348929896,1736875843121,-500.0,0.00010235,2]
[348929898,1736875843130,-500.0,0.00010235,2]
[348929900,1736875843139,-500.0,0.00010235,2]
[348929902,1736875843149,-500.0,0.00010235,2]
[348929904,1736875843158,-500.0,0.00010235,2]
[348929906,1736875843168,-500.0,0.00010235,2]
[348929908,1736875843177,-500.0,0.00010235,2]
[348929910,1736875843187,-500.0,0.00010235,2]